bitfinex-derivatives/quotes_ETHF0:USTF0_20260223
["timestamp","ask_amount","ask_price","bid_price","bid_amount"]
[1771870117022,3.89235345,1862.6,1861.8,4.06723161]
[1771870117220,4.4294136,1862.5,1861.8,4.06723161]
[1771870117418,3.89235345,1862.5,1861.8,4.06723161]
[1771870117619,4.42936704,1862.4,1861.8,4.06723161]
[1771870117819,3.89235345,1862.4,1861.8,4.06723161]
[1771870119623,3.89235345,1862.7,1861.8,4.06723161]
[1771870119819,4.42927216,1862.6,1861.8,4.06723161]
[1771870120020,0.53691871,1862.5,1861.8,4.06723161]
[1771870120220,3.89235345,1862.8,1862.0,4.06077793]
[1771870120420,3.89235345,1863.0,1862.2,4.06077793]
[1771870120621,4.42921584,1862.9,1862.2,4.06077793]
[1771870120922,3.89235345,1862.9,1862.2,4.06077793]
[1771870121726,3.89235345,1863.1,1862.2,4.06077793]
[1771870122022,0.53716957,1863.0,1862.4,4.06077793]
[1771870122228,3.89925373,1863.3,1862.4,4.06077793]
[1771870122424,0.53722766,1863.2,1862.4,4.06077793]
[1771870122729,0.00690028,1863.3,1862.6,4.06077793]
[1771870123919,0.00690028,1863.3,1862.8,4.06077793]
[1771870124121,3.89235345,1864.1,1863.0,4.06077793]
[1771870124431,4.72600102,1864.4,1862.9,0.26842]
[1771870124432,4.42977127,1864.0,1863.2,4.06077793]
[1771870124628,3.89235345,1864.0,1863.2,4.06077793]
[1771870125129,3.89773355,1864.0,1863.2,4.06687133]
[1771870125623,0.0053801,1864.0,1863.4,4.06077793]
[1771870128127,3.49360216,1864.0,1863.4,4.06077793]
[1771870129125,3.49360216,1864.0,1863.2,3.82474351]
[1771870129328,0.0053801,1864.0,1863.2,3.82474351]
[1771870129530,0.0053801,1864.0,1863.4,3.81865011]
[1771870129725,3.49360216,1864.0,1863.4,3.81865011]
[1771870130032,0.0053801,1864.0,1863.4,3.81865011]
[1771870130335,3.48822206,1864.4,1863.4,3.81865011]
[1771870131236,3.48822206,1864.8,1863.6,3.81865011]
[1771870131434,3.49503024,1864.8,1863.6,3.81865011]
[1771870131632,0.00680818,1864.8,1864.0,3.81865011]
[1771870131832,3.48822206,1865.0,1864.0,3.81865011]
[1771870132040,3.48822206,1865.0,1864.2,3.81865011]
[1771870132337,3.48822206,1865.3,1864.4,3.81865011]
[1771870132739,3.49273982,1865.3,1864.4,3.81865011]
[1771870133838,0.00451776,1865.3,1864.6,3.81865011]
[1771870134041,3.48822206,1865.7,1864.6,3.82296837]
[1771870134236,3.48822206,1865.7,1864.8,3.81865011]
[1771870135131,3.49257029,1865.7,1864.8,3.81865011]
[1771870136630,0.00434823,1865.7,1864.8,3.81865011]
[1771870136939,0.00434823,1865.7,1865.0,3.81865011]
[1771870137140,3.49257029,1865.7,1865.0,3.81865011]
[1771870137341,3.49257029,1865.7,1864.6,0.00431826]
[1771870137342,3.49257029,1865.7,1864.8,3.81865011]
[1771870138540,3.49257029,1865.7,1864.6,3.82296837]
[1771870139437,3.76060029,1865.7,1864.6,0.00431826]
[1771870140340,3.76060029,1865.7,1864.6,3.82296837]
[1771870140640,3.76060029,1865.7,1864.6,0.00431826]
[1771870141040,3.48822206,1865.4,1864.6,0.00431826]
[1771870141235,3.48822206,1865.4,1864.6,3.82296837]
[1771870141842,3.48822206,1865.6,1864.8,3.81865011]
[1771870144347,3.48822206,1865.6,1864.6,3.82296837]
[1771870145547,3.75625206,1865.6,1864.6,3.82296837]
[1771870148849,3.48822206,1865.5,1864.6,3.82296837]
[1771870149250,3.48822206,1865.3,1864.6,3.82296837]
[1771870149450,3.48822206,1865.3,1864.7,3.81865011]
[1771870149948,0.00434823,1865.7,1864.9,3.81865011]
[1771870150154,0.00434823,1865.7,1865.1,3.81865011]
[1771870150356,3.49257029,1865.7,1865.1,3.81865011]
[1771870151253,0.00434823,1865.7,1865.1,3.81865011]
[1771870151557,3.48822206,1866.1,1865.1,3.81865011]
[1771870151754,3.48822206,1866.1,1865.1,3.67865011]
[1771870152662,0.00418336,1866.1,1865.3,4.08671011]
[1771870152849,3.48822206,1866.7,1865.6,3.81865011]
[1771870153053,3.48822206,1866.9,1865.6,3.81865011]
[1771870153262,3.48822206,1866.9,1865.8,3.81865011]
[1771870153452,3.48822206,1866.9,1866.0,3.81865011]
[1771870153651,3.48822206,1867.1,1866.0,3.81865011]
[1771870153952,3.48822206,1866.9,1866.0,3.82259996]
[1771870154349,3.48822206,1866.7,1866.0,0.00394985]
[1771870155156,3.48822206,1866.7,1865.7,3.81865011]
[1771870155357,3.48822206,1866.5,1865.7,3.81865011]
[1771870155561,3.48822206,1866.5,1865.0,3.81865011]
[1771870155860,3.48822206,1866.5,1865.2,3.81865011]
[1771870156255,3.48822206,1866.5,1865.4,3.81865011]
[1771870156456,3.48822206,1866.3,1865.4,3.81865011]
[1771870156960,3.48822206,1866.1,1865.2,3.82259934]
[1771870157956,3.57896674,1865.9,1865.2,3.82259934]
[1771870158157,3.57896674,1865.5,1864.8,3.29878569]
[1771870158561,3.57896674,1865.5,1864.6,3.29878569]
[1771870158758,3.57896674,1865.3,1864.6,3.29878569]
[1771870159159,3.58589396,1865.3,1864.6,3.30471296]
[1771870159356,0.268,1865.9,1864.6,3.30471296]
[1771870159562,3.57896674,1865.7,1864.8,3.29878569]
[1771870160463,3.59527505,1865.5,1864.6,3.55118505]
[1771870162664,4.13299802,1865.4,1864.6,3.55118505]
[1771870162864,3.59527505,1865.2,1864.6,3.55118505]
[1771870163059,4.13297656,1865.1,1864.4,3.54525778]
[1771870163362,3.59527505,1865.1,1864.4,3.54525778]
[1771870163959,3.59527505,1865.1,1864.4,3.54920571]
[1771870164164,3.59527505,1864.9,1864.2,3.54525778]
[1771870164363,3.59527505,1864.9,1864.2,3.48691563]
[1771870165267,3.59527505,1864.9,1864.2,3.49219742]
[1771870165868,3.59527505,1864.7,1864.2,3.49219742]
[1771870166663,3.59527505,1864.9,1864.2,3.49219742]
[1771870167166,3.59527505,1864.7,1863.3,3.54525778]
[1771870167361,4.22305015,1864.8,1863.3,3.54525778]
[1771870167362,3.59527505,1864.5,1863.3,3.54525778]
[1771870167562,3.59527505,1864.5,1863.4,3.54525778]
[1771870167768,3.59527505,1864.5,1863.5,3.54525778]
[1771870167967,3.59527505,1864.5,1863.6,3.54525778]
[1771870168268,3.59527505,1864.5,1863.6,3.54974125]
[1771870168770,3.59527505,1864.3,1863.4,3.54525778]
[1771870169869,3.59978097,1864.3,1863.4,3.55161462]
[1771870170768,0.00450592,1864.3,1863.4,3.55161462]
[1771870170962,3.59978097,1864.3,1863.4,3.55161462]
[1771870171168,3.59527505,1864.7,1863.8,3.54525778]
[1771870172270,3.60052078,1864.7,1863.8,3.54525778]
[1771870173977,3.60052078,1864.7,1864.0,3.54525778]
[1771870173978,0.00524573,1864.7,1864.0,3.54525778]
[1771870181983,3.60052078,1864.7,1864.0,3.54525778]
[1771870184381,3.60052078,1864.7,1863.8,3.54525778]
[1771870184684,3.59527505,1864.5,1863.8,3.54525778]
[1771870186282,3.60052078,1864.7,1863.8,3.54525778]
[1771870186490,3.59527505,1865.1,1864.2,3.54525778]
[1771870186687,4.13307657,1865.0,1864.2,3.54525778]
[1771870186885,3.59527505,1864.8,1864.2,3.54525778]
[1771870187487,3.59966719,1864.8,1863.8,3.54525778]
[1771870187692,3.59527505,1864.6,1863.8,3.54525778]
[1771870189785,0.00439214,1864.8,1863.8,3.54525778]
[1771870189987,0.00439214,1864.8,1864.0,3.34426935]
[1771870190294,3.34153886,1864.8,1864.0,3.34426935]
[1771870192196,3.60521672,1865.2,1864.2,3.34426935]
[1771870192399,3.87658685,1865.1,1864.2,3.34426935]
[1771870192595,0.53944013,1865.0,1864.4,3.34426935]
[1771870192897,0.53944013,1864.9,1864.4,3.34426935]
[1771870193196,3.33714672,1865.1,1864.4,3.34426935]
[1771870193397,0.00537831,1864.9,1864.4,3.34426935]
[1771870194598,3.33714672,1865.5,1864.4,3.34426935]
[1771870194892,3.87640964,1865.4,1864.6,3.34426935]
[1771870195195,3.33714672,1865.4,1864.6,3.34426935]
[1771870195594,3.34234278,1865.4,1864.6,3.34426935]
[1771870196196,3.34234278,1865.4,1864.8,3.34426935]
[1771870196395,3.34234278,1865.4,1864.8,3.34815931]
[1771870196997,3.33714672,1865.2,1864.2,3.34426935]
[1771870197294,0.53871732,1865.1,1864.3,3.34426935]
[1771870197499,3.33714672,1865.2,1864.3,3.34426935]
[1771870198199,3.33714672,1865.0,1864.3,3.34977249]
[1771870199897,0.00519606,1865.4,1864.3,3.34977249]
[1771870199898,3.33714672,1865.3,1864.3,3.34977249]
[1771870200097,0.53869645,1865.2,1864.3,3.34977249]
[1771870200297,3.34234278,1865.4,1864.5,3.34426935]
[1771870200498,0.53912655,1865.3,1864.5,3.34426935]
[1771870200803,3.34234278,1865.4,1864.5,3.34426935]
[1771870201100,0.53922833,1865.3,1864.5,3.34426935]
[1771870201300,3.34234278,1865.4,1864.5,3.34426935]
[1771870201494,3.87630075,1865.3,1864.5,3.34426935]
[1771870201700,3.33714672,1865.3,1864.5,3.34426935]
[1771870202497,0.00519606,1865.4,1864.5,3.34426935]
[1771870202699,0.00519606,1865.4,1864.7,3.34426935]
[1771870203300,0.00519606,1865.4,1864.9,3.34426935]
[1771870203502,3.33714672,1865.7,1864.9,3.34426935]
[1771870204004,3.33714672,1865.9,1864.9,3.34426935]
[1771870204206,3.87584286,1865.8,1865.1,3.34426935]
[1771870204402,3.34103316,1865.8,1865.1,3.34426935]
[1771870204802,3.33714672,1865.6,1865.1,3.34426935]
[1771870204999,3.33714672,1865.6,1864.7,3.34426935]
[1771870205400,3.33714672,1865.6,1864.8,3.34426935]
[1771870205605,3.33714672,1865.4,1864.8,3.34426935]
[1771870206004,3.33714672,1865.4,1864.4,3.34426935]
[1771870206306,3.33714672,1865.4,1864.5,3.34426935]
[1771870207803,3.33714672,1865.2,1864.5,3.34426935]
[1771870208305,3.33714672,1865.0,1864.3,3.34977249]
[1771870208607,3.33714672,1864.8,1864.1,3.34426935]
[1771870209008,3.33714672,1864.4,1863.8,3.34426935]
[1771870209607,3.33714672,1864.2,1863.5,3.34426935]
[1771870210505,3.33714672,1864.2,1863.5,3.34845764]
[1771870210708,3.34268209,1864.4,1863.5,3.34845764]
[1771870211909,3.34268209,1864.4,1863.7,3.34426935]
[1771870212812,3.34268209,1864.4,1863.5,3.34845764]
[1771870213710,3.33714672,1864.2,1863.1,3.34426935]
[1771870213905,3.33714672,1864.0,1863.1,3.34426935]
[1771870214708,3.33714672,1864.3,1863.3,3.34426935]
[1771870214911,3.33714672,1864.1,1863.3,3.34426935]
[1771870215111,3.33714672,1864.1,1863.4,10.1797352]
[1771870215310,3.33714672,1864.1,1863.5,3.34426935]
[1771870215809,3.33714672,1864.1,1863.3,3.34426935]
[1771870216212,3.33714672,1863.9,1863.1,3.35091611]
[1771870219013,3.07723244,1863.7,1863.1,0.00664676]
[1771870219609,3.07723244,1863.9,1863.1,3.08061753]
[1771870220614,3.07723244,1863.9,1863.3,2.96882214]
[1771870220818,3.03670876,1864.3,1863.3,2.96882214]
[1771870221722,3.03670876,1864.3,1863.1,0.00664676]
[1771870221926,3.03670876,1863.7,1863.1,2.9754689]
[1771870223319,3.03670876,1863.7,1863.1,0.00664676]
[1771870224325,3.03670876,1863.7,1863.1,2.9754689]
[1771870226126,3.03670876,1863.7,1863.1,0.00664676]
[1771870226527,3.03670876,1863.5,1862.4,2.96882214]
[1771870227323,3.03670876,1863.5,1862.2,41.06849]
[1771870227324,3.03670876,1863.5,1862.6,2.96882214]
[1771870227527,3.03670876,1863.5,1862.6,2.97447215]
[1771870230332,3.03670876,1864.0,1862.8,2.96882214]
[1771870230727,3.03670876,1863.6,1862.6,2.97447215]
[1771870231824,3.69097178,1863.7,1862.6,0.00565001]
[1771870231825,3.03670876,1863.4,1862.6,0.00565001]
[1771870233432,3.03670876,1863.4,1862.6,2.97447215]
[1771870233732,3.03670876,1863.7,1862.8,2.96882214]
[1771870234229,3.03670876,1863.9,1863.0,2.96882214]
[1771870237227,8.41070876,1864.2,1863.0,2.96882214]
[1771870237432,3.03670876,1864.0,1863.0,2.96882214]
[1771870237632,0.53780144,1863.9,1863.0,2.96882214]
[1771870237824,3.5745102,1863.9,1863.0,2.96882214]
[1771870238134,3.03670876,1863.9,1863.0,2.96882214]
[1771870238334,3.03670876,1863.7,1863.0,2.96882214]
[1771870238535,3.03670876,1864.1,1863.0,2.96882214]
[1771870238731,3.57528228,1864.0,1863.0,2.96882214]
[1771870238933,0.53857352,1863.9,1863.0,2.96882214]
[1771870239234,3.57528228,1863.9,1863.0,2.96882214]
[1771870239436,3.03670876,1863.9,1863.0,2.96882214]
[1771870240332,3.03670876,1863.7,1863.0,2.96882214]
[1771870240533,3.57539839,1863.6,1863.0,2.96882214]
[1771870240834,3.03670876,1863.4,1863.0,2.96882214]
[1771870242137,0.26825,1863.9,1863.0,2.96882214]
[1771870242335,0.53910819,1863.8,1863.0,2.96882214]
[1771870242537,0.53910819,1863.7,1863.0,2.96882214]
[1771870242728,3.57581695,1863.7,1863.0,2.96882214]
[1771870242929,3.03670876,1864.1,1863.0,2.96882214]
[1771870243134,3.03670876,1863.9,1863.0,2.96882214]
[1771870243335,0.53899074,1863.8,1863.0,2.96882214]
[1771870243639,3.5756995,1863.8,1863.0,2.96882214]
[1771870243938,3.03670876,1863.6,1863.0,2.96882214]
[1771870245237,3.5758256,1863.5,1863.0,2.96882214]
[1771870245437,3.03670876,1863.5,1863.0,2.96882214]
[1771870245833,5.64225,1864.0,1863.0,2.96882214]
[1771870246037,3.03670876,1863.8,1863.0,2.96882214]
[1771870246333,3.57582478,1863.7,1863.0,2.96882214]
[1771870246535,3.03670876,1863.5,1862.8,2.96882214]
[1771870246842,3.03670876,1863.5,1862.9,2.96882214]
[1771870247135,3.03670876,1863.3,1862.7,2.96882214]
[1771870249436,0.26829,1863.7,1862.7,2.96882214]
[1771870249636,4.46221121,1863.9,1862.7,2.96882214]
[1771870249637,3.56215104,1863.6,1862.7,2.96882214]
[1771870249839,0.53907902,1863.5,1862.9,2.81352233]
[1771870250547,3.02307202,1864.2,1863.1,2.81352233]
[1771870250745,3.02307202,1864.0,1863.1,2.81352233]
[1771870250944,3.02307202,1864.0,1863.3,2.81352233]
[1771870251846,3.02307202,1864.2,1863.5,2.81352233]
[1771870252644,3.02860739,1864.4,1863.6,6.94440244]
[1771870252946,3.02860739,1864.4,1863.7,2.81352233]
[1771870253144,3.02860739,1864.4,1863.5,2.81352233]
[1771870253542,3.02307202,1864.3,1863.5,2.81352233]
[1771870255044,3.02307202,1864.1,1863.0,2.81352233]
[1771870255348,3.02307202,1863.9,1863.0,2.81352233]
[1771870256644,6.17381716,1863.8,1862.7,2.81352233]
[1771870256948,3.02307202,1863.7,1862.7,2.81352233]
[1771870257345,3.02307202,1863.7,1862.9,2.81352233]
[1771870258440,3.02307202,1864.2,1863.1,2.81352233]
[1771870258647,3.02307202,1864.1,1863.1,2.81352233]
[1771870259045,3.02307202,1864.3,1863.3,2.81352233]
[1771870259345,3.02307202,1864.3,1863.5,2.81352233]
[1771870262345,0.00553537,1864.4,1863.7,2.81352233]
[1771870263051,3.02860739,1864.4,1863.7,2.81352233]
[1771870263648,3.02307202,1864.2,1863.3,2.81352233]
[1771870265948,3.02307202,1864.0,1863.3,2.81352233]
[1771870266646,0.5382019,1863.9,1862.9,2.81352233]
[1771870266845,3.02307202,1863.8,1862.9,2.81352233]
[1771870267754,3.02307202,1863.8,1862.4,40.8]
[1771870267755,3.02307202,1863.8,1863.1,2.81352233]
[1771870267954,0.26822,1864.2,1863.1,2.81352233]
[1771870268253,3.56123896,1864.1,1863.3,2.81352233]
[1771870268457,3.02307202,1863.9,1863.3,2.81352233]
[1771870268749,3.02307202,1863.9,1863.1,2.81352233]
[1771870274151,3.02307202,1864.1,1863.1,2.81352233]
[1771870274351,0.26822,1864.2,1862.9,2.81352233]
[1771870274352,3.02307202,1863.9,1862.9,2.81352233]
[1771870274851,3.02307202,1864.3,1863.1,2.81352233]
[1771870275052,3.02307202,1864.1,1863.1,2.81352233]
[1771870275352,3.56174948,1864.0,1863.1,2.81352233]
[1771870275663,3.02307202,1863.8,1863.1,2.81352233]
[1771870277055,3.02307202,1863.8,1862.9,2.81352233]
[1771870277355,3.02307202,1863.8,1862.6,0.27407001]
[1771870277356,3.02307202,1863.6,1862.7,2.81352233]
[1771870277560,3.02307202,1863.6,1862.1,8.35416198]
[1771870277561,3.29141202,1863.3,1862.3,2.81352233]
[1771870277859,2.86822126,1863.1,1862.3,2.81352233]
[1771870278062,2.86822126,1862.9,1862.3,2.81352233]
[1771870278559,2.87379258,1862.9,1862.3,2.820187]
[1771870279455,2.87379258,1862.9,1862.3,0.00666467]
[1771870281458,2.87379258,1862.9,1862.2,2.77631495]
[1771870281459,2.81323276,1862.7,1861.7,2.77631495]
[1771870282266,2.81323276,1862.5,1861.7,2.77631495]
[1771870282562,2.81323276,1862.5,1861.7,0.00586282]
[1771870283258,2.81323276,1862.3,1860.9,2.77631495]
[1771870283564,2.81323276,1862.1,1861.0,2.77631495]
[1771870284256,2.81323276,1862.1,1861.0,2.78127723]
[1771870286561,2.81323276,1862.1,1861.2,2.77631495]
[1771870286762,2.81323276,1862.3,1861.2,3.04495495]
[1771870286965,2.81323276,1862.3,1861.4,2.77631495]
[1771870287368,2.81323276,1862.3,1861.6,2.77631495]
[1771870290961,2.81323276,1862.3,1861.4,2.77631495]
[1771870293980,2.81323276,1862.1,1861.1,2.77631495]
[1771870294275,2.81323276,1861.9,1861.1,2.77631495]
[1771870296074,0.26847,1862.4,1861.1,2.77631495]
[1771870296075,2.81323276,1862.3,1861.1,2.77631495]
[1771870296274,2.81323276,1862.2,1861.1,2.77631495]
[1771870297780,2.81323276,1862.2,1861.3,2.77631495]
[1771870299178,2.81323276,1862.4,1861.5,2.77631495]
[1771870299376,2.81323276,1862.8,1861.5,3.04490495]
[1771870299578,2.81323276,1862.8,1861.7,2.77631495]
[1771870300976,0.26842,1862.7,1861.7,2.77631495]
[1771870301285,2.81323276,1862.6,1861.7,2.77631495]
[1771870307286,2.81323276,1862.4,1861.7,2.77631495]
[1771870307586,2.81323276,1862.2,1861.5,2.77631495]
[1771870308585,2.76458238,1862.4,1861.5,2.77631495]
[1771870308791,0.53792749,1862.3,1861.5,2.77631495]
[1771870308990,2.76458238,1862.4,1861.5,2.77631495]
[1771870309191,3.30238714,1862.3,1861.5,2.77631495]
[1771870309386,0.26841,1862.8,1861.5,2.77631495]
[1771870309581,2.76458238,1862.6,1861.5,2.77631495]
[1771870309789,2.7298099,1862.7,1861.7,2.79819886]
[1771870309986,0.53798652,1862.6,1861.7,2.79819886]
[1771870310285,2.7298099,1862.7,1861.9,2.79819886]
[1771870310485,2.73538122,1862.9,1861.9,2.79819886]
[1771870310682,0.5381592,1862.8,1861.9,2.79819886]
[1771870310885,2.73538122,1862.9,1861.9,2.79819886]
[1771870311088,3.26777178,1862.8,1861.9,2.79819886]
[1771870311291,2.7298099,1862.8,1861.9,2.79819886]
[1771870311794,0.00557132,1862.9,1862.1,2.79819886]
[1771870311994,0.53797159,1862.8,1862.1,2.79819886]
[1771870312291,0.00557132,1862.9,1862.3,2.79819886]
[1771870313490,2.7298099,1863.3,1862.5,2.79819886]
[1771870313689,0.53747193,1863.2,1862.5,2.79819886]
[1771870313888,2.7298099,1863.3,1862.5,2.79819886]
[1771870314091,0.53753934,1863.2,1862.5,2.79819886]
[1771870314286,2.7298099,1863.3,1862.5,2.79819886]
[1771870314487,2.73560177,1863.3,1862.5,2.80508266]
[1771870315793,0.00579187,1863.3,1862.5,3.07352266]
[1771870315996,2.7298099,1863.5,1862.7,2.79819886]
[1771870316491,2.7298099,1863.3,1862.5,2.80508266]
[1771870317087,2.73596532,1863.3,1862.5,2.80508266]
[1771870318390,0.00615542,1863.3,1862.7,2.79819886]
[1771870320993,2.7298099,1864.0,1862.9,2.79819886]
[1771870321992,2.73568857,1864.0,1863.0,7.03539813]
[1771870322293,2.73568857,1864.0,1863.1,2.79819886]
[1771870324296,0.00587867,1864.0,1863.3,2.79819886]
[1771870324891,2.73568857,1864.0,1863.3,2.79819886]
[1771870329599,3.00392857,1864.0,1863.1,2.79819886]
[1771870329801,2.73568857,1864.0,1863.1,2.79819886]
[1771870330399,2.73568857,1864.0,1863.3,2.79819886]
[1771870336202,0.00587867,1864.0,1863.5,2.79819886]
[1771870336402,2.73568857,1864.0,1863.5,2.79819886]
[1771870336998,0.26817,1864.5,1863.5,2.79819886]
[1771870337201,2.9979799,1864.5,1863.5,2.79819886]
[1771870338002,3.00332558,1864.5,1863.5,2.79819886]
[1771870340909,2.63672107,1864.3,1863.1,2.78017684]
[1771870341207,2.63672107,1864.3,1863.1,9.8760904]
[1771870341408,2.63672107,1864.3,1863.2,2.78017684]
[1771870341708,2.63672107,1864.3,1863.3,6.82746838]
[1771870341908,2.63672107,1864.3,1863.4,2.78017684]
[1771870342210,2.63672107,1864.1,1863.1,2.78017684]
[1771870342409,2.63672107,1863.9,1863.1,2.78017684]
[1771870345106,4.44717604,1864.5,1863.6,2.78017684]
[1771870345107,0.00534568,1864.5,1863.6,2.78017684]
[1771870345410,2.63672107,1864.8,1864.1,2.78017684]
[1771870346008,2.63672107,1864.6,1863.7,2.78017684]
[1771870346408,2.64108469,1864.6,1863.8,2.78017684]
[1771870347011,0.00436362,1864.6,1864.0,3.04843684]
[1771870348813,2.63672107,1864.9,1864.2,2.78017684]
[1771870349715,2.64254254,1864.9,1864.2,2.78017684]
[1771870350615,2.64254254,1864.9,1863.8,2.78017684]
[1771870350814,2.63672107,1864.7,1863.8,2.78017684]
[1771870351116,2.63672107,1864.5,1863.8,2.78017684]
[1771870352218,2.63672107,1864.5,1863.7,0.00409928]
[1771870352418,2.63672107,1864.3,1863.7,0.00409928]
[1771870352618,2.63672107,1864.1,1863.7,0.00409928]
[1771870353217,2.63672107,1864.1,1863.5,2.78017684]
[1771870353814,2.63672107,1864.1,1863.3,2.78017684]
[1771870354017,2.63672107,1864.1,1862.3,14.57093687]
[1771870354018,2.63672107,1863.9,1862.9,2.78017684]
[1771870354222,2.63672107,1863.7,1862.9,2.78663985]
[1771870354815,0.26826,1864.1,1862.9,2.78663985]
[1771870354816,2.63672107,1864.0,1862.9,2.78663985]
[1771870355016,2.63672107,1864.0,1863.1,2.78017684]
[1771870355017,0.53617143,1863.9,1863.1,2.78017684]
[1771870355216,2.63672107,1864.0,1863.1,2.78017684]
[1771870355417,2.63672107,1863.8,1863.1,2.78017684]
[1771870361121,2.63672107,1864.0,1863.1,2.78017684]
[1771870361319,5.374,1864.5,1863.1,2.78017684]
[1771870361320,2.63672107,1863.9,1863.1,2.78017684]
[1771870361621,2.63672107,1864.5,1863.3,2.78017684]
[1771870361812,2.63672107,1864.3,1863.3,2.78017684]
[1771870362017,2.63672107,1864.3,1863.5,2.78017684]
[1771870363118,2.63672107,1864.3,1863.1,2.78017684]
[1771870363622,2.63672107,1864.3,1863.3,2.78017684]
[1771870364023,2.63672107,1864.1,1863.3,2.78017684]
[1771870373720,2.8547568,1864.6,1863.5,2.83334289]
[1771870374030,2.8547568,1864.4,1863.5,2.83334289]
[1771870377428,2.8547568,1864.2,1863.1,2.83334289]
[1771870377820,2.8547568,1864.0,1863.2,2.83334289]
[1771870381925,2.8547568,1863.8,1862.9,2.8398059]
[1771870382132,2.8547568,1863.6,1862.9,2.8398059]
[1771870382431,2.8547568,1863.4,1862.9,2.8398059]
[1771870382634,2.85894153,1863.4,1862.9,2.8398059]
[1771870382832,2.85894153,1863.4,1862.9,0.00646301]
[1771870383129,2.8547568,1863.2,1862.1,2.83334289]
[1771870383433,6.82805846,1863.3,1862.1,2.83334289]
[1771870383434,2.8547568,1863.0,1862.1,2.83334289]
[1771870384131,2.8547568,1862.8,1861.9,2.83334289]
[1771870384332,2.8547568,1862.6,1861.9,2.83334289]
[1771870385329,2.8547568,1862.8,1861.9,2.837511]
[1771870386331,2.8547568,1862.8,1862.1,2.83334289]
[1771870391636,2.8547568,1863.3,1862.3,2.83334289]
[1771870392432,0.27254473,1863.4,1861.9,0.00416811]
[1771870392433,0.26846,1862.6,1861.9,0.00416811]
[1771870392736,2.8547568,1862.5,1861.6,2.83334289]
[1771870393526,2.8547568,1862.5,1861.6,2.8383889]
[1771870395438,0.2684,1863.1,1861.8,2.83334289]
[1771870395439,2.8547568,1862.7,1861.8,2.83334289]
[1771870395738,2.8547568,1863.3,1862.0,2.83334289]
[1771870396129,2.8547568,1863.2,1862.2,2.83334289]
[1771870404235,2.8547568,1863.2,1862.4,2.67378601]
[1771870405738,2.8547568,1863.2,1862.2,2.67378601]
[1771870406642,2.67905064,1863.0,1862.0,2.67378601]
[1771870408340,2.67905064,1862.8,1862.0,2.67378601]
[1771870409141,2.67905064,1863.0,1862.0,2.67378601]
[1771870409345,3.21753365,1862.9,1862.0,2.67378601]
[1771870409541,2.67905064,1862.9,1862.0,2.67378601]
[1771870410348,2.67905064,1862.9,1862.2,2.67378601]
[1771870411248,3.21828883,1862.8,1862.2,2.67378601]
[1771870411444,2.67905064,1862.8,1862.2,2.67378601]
[1771870411645,2.67905064,1863.2,1862.2,2.67378601]
[1771870411945,3.21828948,1863.1,1862.2,2.67378601]
[1771870412248,3.21828948,1863.0,1862.2,2.67378601]
[1771870412542,0.53923884,1862.9,1862.2,2.67378601]
[1771870413247,3.21828948,1862.9,1862.2,2.67378601]
[1771870413546,2.67905064,1862.9,1862.2,2.67378601]
[1771870414944,2.67905064,1862.7,1862.0,2.67378601]
[1771870415348,2.67905064,1862.7,1862.1,2.67378601]
[1771870415646,2.67905064,1863.0,1862.1,2.67378601]
[1771870415848,3.2188194,1862.9,1862.1,2.67378601]
[1771870416044,3.2188194,1862.8,1862.1,2.67378601]
[1771870416245,2.67905064,1862.8,1862.1,2.67378601]
[1771870421053,3.21881849,1862.7,1862.1,2.67378601]
[1771870421255,2.67905064,1862.7,1862.1,2.67378601]
[1771870422158,2.67905064,1862.5,1861.7,2.67378601]
[1771870422356,2.67905064,1862.3,1861.6,0.00504601]
[1771870422549,2.67905064,1862.1,1861.5,2.67378601]
[1771870422753,2.67905064,1862.1,1860.8,2.67378601]
[1771870422754,2.67905064,1861.9,1860.8,2.67378601]
[1771870423050,2.67905064,1861.7,1860.9,2.67378601]
[1771870423256,2.67905064,1861.5,1860.9,2.67378601]
[1771870423757,2.68430957,1861.5,1860.9,2.68012262]
[1771870424957,0.00525893,1861.5,1860.9,2.68012262]
[1771870426157,2.67905064,1862.4,1861.1,2.67378601]
[1771870426358,2.67905064,1862.2,1861.1,2.67378601]
[1771870426555,3.69421848,1862.5,1861.1,2.67378601]
[1771870426556,2.67905064,1862.0,1861.1,2.67378601]
[1771870427059,2.68502263,1862.0,1861.1,2.67378601]
[1771870434663,2.78135551,1861.8,1860.9,2.84352628]
[1771870435065,2.78135551,1861.8,1860.9,0.00633661]
[1771870435561,2.78135551,1861.8,1860.9,2.84352628]
[1771870437262,0.53638592,1861.7,1860.9,2.84352628]
[1771870437468,2.78135551,1861.6,1860.9,0.00633661]
[1771870437965,2.78135551,1861.6,1860.9,2.84352628]
[1771870438655,0.00597199,1862.0,1860.9,3.11222628]
[1771870438859,2.78135551,1861.9,1860.9,3.11222628]
[1771870439264,2.78135551,1861.9,1861.1,3.10586967]
[1771870440368,0.00597199,1862.0,1861.1,3.10586967]
[1771870440569,0.00597199,1862.0,1861.3,2.83718967]
[1771870440772,2.7873275,1862.0,1861.3,2.83718967]
[1771870442368,0.00597199,1862.0,1861.3,2.83718967]
[1771870444472,2.78135551,1862.3,1861.5,2.83718967]
[1771870445567,2.78785989,1862.3,1861.5,2.83718967]
[1771870446571,2.78135551,1862.7,1861.9,2.83718967]
[1771870446765,2.78135551,1862.9,1862.1,2.83718967]
[1771870447071,2.78135551,1862.9,1862.2,9.67600272]
[1771870447272,2.78135551,1863.1,1862.3,2.83718967]
[1771870447771,2.78730049,1863.1,1862.3,2.84223311]
[1771870455681,0.00594498,1863.1,1862.5,2.83718967]
[1771870458183,2.53582994,1863.1,1862.5,2.83718967]
[1771870458885,2.52988496,1863.5,1862.7,2.6966663]
[1771870459784,2.53493771,1863.5,1862.7,2.6966663]
[1771870460985,2.53493771,1863.5,1862.5,2.66047111]
[1771870465990,2.53493771,1863.5,1862.5,2.92894111]
[1771870467092,2.53493771,1863.5,1862.3,0.00504344]
[1771870467093,2.59306131,1863.1,1862.3,2.66551455]
[1771870471291,2.59306131,1862.9,1862.3,2.66551455]
[1771870471992,2.59306131,1862.9,1862.3,0.00504344]
[1771870472195,2.59306131,1862.7,1861.9,2.66047111]
[1771870472497,2.59306131,1862.5,1861.9,2.66047111]
[1771870472896,2.59306131,1862.8,1861.9,2.66047111]
[1771870473190,0.53873973,1862.7,1861.9,2.66047111]
[1771870473389,2.59306131,1862.8,1861.9,2.66638479]
[1771870473591,3.13180053,1862.7,1861.9,2.66638479]
[1771870473787,2.04244851,1863.3,1862.5,6.60466]
[1771870473992,0.09343147,1863.9,1862.4,9.26550111]
[1771870473993,2.59306131,1864.1,1863.1,1.55405638]
[1771870474186,2.59306131,1864.1,1863.3,1.55405638]
[1771870474493,2.59306131,1864.1,1863.5,1.55405638]
[1771870474893,2.59705586,1864.1,1863.5,1.56081635]
[1771870478195,2.60210861,1864.1,1863.5,0.00675997]
[1771870478392,2.59705586,1864.1,1863.5,0.00675997]
[1771870478792,2.59306131,1863.9,1863.3,1.49165402]
[1771870479297,2.59306131,1863.9,1862.8,1.48243089]
[1771870479697,2.59306131,1863.9,1862.9,1.4792375]
[1771870479898,2.59705586,1864.1,1863.2,1.47912428]
[1771870480300,2.59705586,1864.1,1863.4,1.47912428]